[Event "Djerba Festival Open-B 2025"]
[Site "Djerba"]
[Date "2025.02.21"]
[Round "7.14"]
[White "Smida, Tahar"]
[Black "Abokrais, Kaled"]
[Result "1-0"]
[Annotator "NA"]
[ECO "B32"]
[WhiteElo "1769"]
[BlackElo "1902"]
[PlyCount "95"]
[EventDate "2025.02.15"]
[EventType "swiss"]
[EventCountry "TUN"]
[SourceTitle "playchess.com"]
[Source "ChessBase"]
[SourceQuality "1"]
[TimeControl "5400+30"]

1. e4 c5 {[%emt 0:10:51]} 2. Nf3 {[%emt 0:00:08]} Nc6 {[%emt 0:00:05]} 3. d4 {[%emt 0:00:06]} cxd4 {[%emt 1:21:04]} 4. Nxd4 {[%emt 0:00:17]} e5 {[%emt 0:00:00]} 5. Nb5 {[%emt 0:00:41]} d6 {[%emt 0:00:00]} 6. N1c3 {[%emt 0:00:53]} a6 {[%emt 0:00:00]} 7. Na3 {[%emt 0:00:29]} b5 {[%emt 0:00:00]} 8. Nd5 {[%emt 0:00:49]} h6 {[%emt 0:00:00]} 9. Bxb5 {[%emt 0:04:24]} axb5 {[%emt 0:00:00]} 10. Nxb5 {[%emt 0:00:29]} Be6 {[%emt 0:00:00]} 11. Nbc7+ {[%emt 0:01:20]} Kd7 {[%emt 0:00:00]} 12. Nxa8 {[%emt 0:00:56]} Bxd5 {[%emt 0:00:00]} 13. exd5 {[%emt 0:06:36]} Nd4 {[%emt 0:00:00]} 14. c3 {[%emt 0:01:42]} Qxa8 {[%emt 0:00:00]} 15. cxd4 {[%emt 0:02:50]} Qxd5 {[%emt 0:00:00]} 16. Qg4+ {[%emt 0:04:20]} Kd8 {[%emt 0:00:00]} 17. O-O {[%emt 0:03:00]} Nf6 {[%emt 0:00:00]} 18. Qh4 {[%emt 0:03:19]} e4 {[%emt 0:00:00]} 19. Be3 {[%emt 0:04:49]} g5 {[%emt 0:00:00]} 20. Qh3 {[%emt 0:00:07]} Be7 {[%emt 0:00:00]} 21. f3 {[%emt 0:03:46]} exf3 {[%emt 0:00:00]} 22. Qxf3 {[%emt 0:01:17]} Rf8 {[%emt 0:00:00]} 23. Qxd5 {[%emt 0:00:25]} Nxd5 {[%emt 0:00:00]} 24. Bf2 {[%emt 0:00:31]} f5 {[%emt 0:00:00]} 25. g3 {[%emt 0:00:35]} f4 {[%emt 0:00:00]} 26. gxf4 {[%emt 0:04:05]} Rxf4 {[%emt 0:00:00]} 27. Bg3 {[%emt 0:08:55]} Rg4 {[%emt 0:00:00]} 28. Kf2 {[%emt 0:00:24]} Nf6 {[%emt 0:00:00]} 29. Kg1 {[%emt 0:00:00]} Nd5 {[%emt 0:00:00]} 30. Kf2 {[%emt 0:01:00]} Nf6 {[%emt 0:00:00]} 31. Rad1 {[%emt 0:05:26]} h5 {[%emt 0:00:00]} 32. h3 {[%emt 0:04:19]} Ne4+ {[%emt 0:00:00]} 33. Kf3 {[%emt 0:00:24]} Rxg3+ {[%emt 0:00:00]} 34. Kxe4 {[%emt 0:00:12]} Rxh3 {[%emt 0:00:00]} 35. Rh1 {[%emt 0:00:32]} Rxh1 {[%emt 0:00:00]} 36. Rxh1 {[%emt 0:00:11]} h4 {[%emt 0:00:00]} 37. Kf5 {[%emt 0:01:26]} Kd7 {[%emt 0:00:00]} 38. d5 {[%emt 0:00:33]} Kc7 {[%emt 0:00:00]} 39. b4 {[%emt 0:02:43]} Kb6 {[%emt 0:00:00]} 40. a4 {[%emt 0:00:18]} Bd8 {[%emt 0:00:00]} 41. Kg4 {[%emt 0:00:54]} Bf6 {[%emt 0:00:00]} 42. Rc1 {[%emt 0:00:34]} Be5 {[%emt 0:00:00]} 43. Kxg5 {[%emt 0:01:36]} h3 {[%emt 0:00:00]} 44. Kg4 {[%emt 0:00:43]} h2 {[%emt 0:00:00]} 45. Kh3 {[%emt 0:00:22]} Bc3 {[%emt 0:00:00]} 46. b5 {[%emt 0:04:46]} Kc5 {[%emt 0:00:00]} 47. Rxc3+ {[%emt 0:00:14]} Kxd5 {[%emt 0:00:00]} 48. Kxh2 {[%emt 0:31:04]} 1-0

[Event "Djerba Festival Open-B 2025"]
[Site "Djerba"]
[Date "2025.02.21"]
[Round "7.15"]
[White "Minde, Baptiste"]
[Black "Chelli, Hichem"]
[Result "1-0"]
[Annotator "NA RC"]
[ECO "B07"]
[WhiteElo "1896"]
[BlackElo "1763"]
[PlyCount "125"]
[EventDate "2025.02.15"]
[EventType "swiss"]
[EventCountry "TUN"]
[SourceTitle "playchess.com"]
[Source "ChessBase"]
[SourceQuality "1"]
[TimeControl "5400+30"]

1. d4 Nf6 {[%emt 1:31:00]} 2. Bf4 {[%emt 1:31:30]} d6 {[%emt 0:00:30]} 3. Nc3 {[%emt 0:00:30]} g6 {[%emt 0:00:30]} 4. e4 {[%emt 0:00:30]} Bg7 {[%emt 0:00:30]} 5. Qd2 {[%emt 0:00:30]} Nbd7 {[%emt 0:00:30]} 6. O-O-O {[%emt 0:00:00]} O-O {[%emt 0:00:00]} 7. e5 {[%emt 0:00:00]} Ne8 {[%emt 0:00:00]} 8. Bh6 {[%emt 0:00:00]} c5 {[%emt 0:00:00]} 9. Nf3 {[%emt 0:00:00]} cxd4 {[%emt 0:00:00]} 10. Nxd4 {[%emt 0:00:00]} Nxe5 {[%emt 0:00:00]} 11. f3 {[%emt 0:00:00]} Be6 {[%emt 0:00:00]} 12. h4 {[%emt 0:00:00]} Nf6 {[%emt 0:00:00]} 13. h5 {[%emt 0:00:00]} Nxh5 {[%emt 0:00:00]} 14. Rxh5 {[%emt 0:00:00]} gxh5 {[%emt 0:00:00]} 15. Qg5 {[%emt 0:00:00]} Ng6 {[%emt 0:00:00]} 16. Bxg7 {[%emt 0:00:00]} Kxg7 {[%emt 0:00:00]} 17. Bd3 {[%emt 0:00:00]} Qb6 {[%emt 0:00:00]} 18. Nxe6+ {[%emt 0:00:00]} fxe6 {[%emt 0:00:00]} 19. Rh1 {[%emt 0:00:00]} Qc5 {[%emt 0:00:46]} 20. Qh4 {[%emt 0:00:00]} Rf4 {[%emt 0:00:18]} 21. Qg3 {[%emt 0:00:00]} h4 {[%emt 0:01:21]} 22. Qh3 {[%emt 0:00:00]} Qe3+ {[%emt 0:01:56]} 23. Kb1 {[%emt 0:00:00]} d5 {[%emt 0:02:05]} 24. Nd1 {[%emt 0:00:00]} Qe5 {[%emt 0:00:38]} 25. Nf2 {[%emt 0:00:00]} h5 {[%emt 0:00:50]} 26. Bxg6 {[%emt 0:00:00]} Kxg6 {[%emt 0:00:13]} 27. Nd3 {[%emt 0:00:00]} Qf5 {[%emt 0:01:02]} 28. Nxf4+ {[%emt 0:00:00]} Qxf4 {[%emt 0:00:04]} 29. Qxe6+ {[%emt 0:00:00]} Qf6 {[%emt 0:00:23]} 30. Qxd5 {[%emt 0:00:00]} Rb8 {[%emt 0:02:10]} 31. Qe4+ {[%emt 0:00:00]} Kf7 {[%emt 0:00:41]} 32. Rxh4 {[%emt 0:00:00]} Rd8 {[%emt 0:00:25]} 33. a3 {[%emt 0:00:00]} Rd1+ {[%emt 0:00:25]} 34. Ka2 {[%emt 0:00:00]} Qe6+ {[%emt 0:00:12]} 35. Qxe6+ {[%emt 0:00:00]} Kxe6 {[%emt 0:00:01]} 36. Rxh5 {[%emt 0:00:00]} Rd2 {[%emt 0:00:05]} 37. Rh4 {[%emt 0:00:00]} Rd1 38. Rh5 {[%emt 0:00:00]} Rd2 {[%emt 0:01:00]} 39. g4 {[%emt 0:00:00]} Rxc2 {[%emt 0:00:19]} 40. f4 {[%emt 0:00:00]} Rg2 {[%emt 0:01:04]} 41. Re5+ {[%emt 0:00:00]} Kd6 {[%emt 0:00:33]} 42. g5 {[%emt 0:00:00]} Rg4 {[%emt 0:00:49]} 43. Rf5 {[%emt 0:00:00]} b6 {[%emt 0:01:00]} 44. Kb3 {[%emt 0:00:00]} a5 {[%emt 0:00:24]} 45. Kc4 {[%emt 0:00:00]} e5 {[%emt 0:00:16]} 46. Rf6+ {[%emt 0:00:00]} Kc7 {[%emt 0:00:18]} 47. Kd3 {[%emt 0:00:00]} exf4 {[%emt 0:00:12]} 48. g6 {[%emt 0:00:00]} b5 {[%emt 0:00:52]} 49. Ke4 {[%emt 0:00:00]} b4 {[%emt 0:01:02]} 50. Kf3 {[%emt 0:00:00]} bxa3 {[%emt 0:00:34]} 51. bxa3 {[%emt 0:00:00]} Rg1 {[%emt 0:00:27]} 52. Kxf4 {[%emt 0:00:00]} Kd7 {[%emt 0:00:13]} 53. Kf5 {[%emt 0:00:00]} Ke7 {[%emt 0:00:47]} 54. Rf7+ {[%emt 0:00:00]} Ke8 {[%emt 0:00:01]} 55. Kf6 {[%emt 0:00:00]} Rg3 {[%emt 0:00:19]} 56. Re7+ {[%emt 0:00:00]} Kd8 {[%emt 0:00:40]} 57. Re5 {[%emt 0:00:00]} Rf3+ {[%emt 0:00:59]} 58. Rf5 {[%emt 0:00:00]} Rg3 {[%emt 0:00:34]} 59. Kf7 {[%emt 0:00:00]} Re3 {[%emt 0:00:30]} 60. Rd5+ {[%emt 0:00:00]} Kc7 {[%emt 0:00:00]} 61. g7 {[%emt 0:00:00]} Rf3+ {[%emt 0:00:19]} 62. Kg6 {[%emt 0:00:00]} Kc6 {[%emt 0:00:39]} 63. g8=Q {[%emt 0:28:24]} 1-0

[Event "Djerba Festival Open-B 2025"]
[Site "Djerba"]
[Date "2025.02.21"]
[Round "7.17"]
[White "Le Dore, Yann"]
[Black "Chargui, Saleh"]
[Result "1/2-1/2"]
[Annotator "NA RC"]
[ECO "C11"]
[WhiteElo "1846"]
[BlackElo "1709"]
[PlyCount "146"]
[EventDate "2025.02.15"]
[EventType "swiss"]
[EventCountry "TUN"]
[SourceTitle "playchess.com"]
[Source "ChessBase"]
[SourceQuality "1"]
[TimeControl "5400+30"]

1. e4 {[%emt 0:00:16]} e6 {[%emt 0:00:06]} 2. d4 {[%emt 0:00:08]} d5 {[%emt 0:00:03]} 3. Nc3 {[%emt 0:00:20]} Nf6 {[%emt 0:00:21]} 4. e5 {[%emt 0:00:42]} Nfd7 {[%emt 0:00:20]} 5. f4 {[%emt 0:00:12]} c5 {[%emt 0:00:11]} 6. Nf3 {[%emt 0:00:08]} Nc6 {[%emt 0:00:14]} 7. Be3 {[%emt 0:00:11]} Be7 {[%emt 0:02:45]} 8. a3 {[%emt 0:01:57] C11: French: Classical System: 4 e5 and 4 Bg5 dxe4.} cxd4 {[%emt 0:01:14]} 9. Nxd4 {[%emt 0:00:18]} a6 {[%emt 0:01:50]} 10. Qd2 {[%emt 0:01:00]} Qc7 {[%emt 0:01:30]} 11. Bd3 {[%emt 0:02:40]} g6 {[%emt 0:03:53]} 12. O-O {[%emt 0:02:52]} Bc5 {[%emt 0:02:15]} 13. Nce2 {[%emt 0:02:15]} Nxd4 {[%emt 0:02:01]} 14. Nxd4 {[%emt 0:00:15]} O-O {[%emt 0:01:39]} 15. c3 {[%emt 0:03:43]} b5 {[%emt 0:01:29]} 16. Rad1 {[%emt 0:03:55]} Bb7 {[%emt 0:01:19]} 17. Bb1 {[%emt 0:00:57]} Bxd4 {[%emt 0:01:54]} 18. Bxd4 {[%emt 0:00:30]} Rac8 {[%emt 0:01:34]} 19. Qe3 {[%emt 0:04:38]} Rfe8 {[%emt 0:07:09]} 20. Rf3 {[%emt 0:16:40]} Qd8 {[%emt 0:04:58]} 21. Rh3 {[%emt 0:05:05]} Qe7 {[%emt 0:03:57]} 22. f5 {[%emt 0:05:59]} exf5 {[%emt 0:01:27]} 23. Qh6 {[%emt 0:00:25]} Nf8 {[%emt 0:10:57]} 24. Bxf5 {[%emt 0:13:34]} Rc6 {[%emt 0:04:34]} 25. Bb1 {[%emt 0:09:19]} Bc8 {[%emt 0:05:28]} 26. Rg3 {[%emt 0:03:17]} Be6 {[%emt 0:02:46]} 27. Rf1 {[%emt 0:02:57]} Nd7 {[%emt 0:02:23]} 28. h4 {[%emt 0:10:49]} Qf8 {[%emt 0:05:17]} 29. Qd2 {[%emt 0:01:11]} Kh8 {[%emt 0:01:59]} 30. h5 {[%emt 0:00:18]} Qg7 {[%emt 0:04:03]} 31. hxg6 {[%emt 0:00:37]} fxg6 {[%emt 0:00:26]} 32. Qe3 {[%emt 0:04:04]} Rf8 {[%emt 0:04:12]} 33. Rxf8+ {[%emt 0:00:32]} Nxf8 {[%emt 0:00:07]} 34. Ba2 {[%emt 0:00:29]} Qd7 {[%emt 0:02:02]} 35. Rf3 {[%emt 0:00:25]} Kg8 {[%emt 0:00:50]} 36. Bc5 {[%emt 0:00:57]} Rc8 {[%emt 0:00:44]} 37. Bd6 {[%emt 0:01:08]} Kg7 {[%emt 0:06:01]} 38. Rf6 {[%emt 0:02:03]} Bf7 {[%emt 0:01:45]} 39. Qf3 {[%emt 0:00:43]} Re8 {[%emt 0:03:01]} 40. Bxd5 {[%emt 0:00:24]} Bxd5 {[%emt 0:00:30]} 41. Qxd5 {[%emt 0:00:20]} Ne6 {[%emt 0:00:27]} 42. Qf3 {[%emt 0:01:13]} h6 {[%emt 0:02:20]} 43. Qd3 {[%emt 0:01:08]} Kh8 {[%emt 0:02:52]} 44. Qxg6 {[%emt 0:00:18]} Ng5 {[%emt 0:01:08]} 45. Qxh6+ {[%emt 0:00:22]} Nh7 {[%emt 0:00:14]} 46. Rf3 {[%emt 0:01:17]} Rg8 {[%emt 0:00:27]} 47. Qh3 {[%emt 0:00:48]} Qxh3 {[%emt 0:02:31]} 48. Rxh3 {[%emt 0:00:05]} Re8 {[%emt 0:00:24]} 49. Re3 {[%emt 0:00:41]} Ng5 {[%emt 0:00:26]} 50. Kf2 {[%emt 0:00:42]} Kh7 {[%emt 0:00:37]} 51. Ke2 {[%emt 0:00:12]} Kg6 {[%emt 0:00:22]} 52. g4 {[%emt 0:00:10]} Ne6 {[%emt 0:00:23]} 53. a4 {[%emt 0:00:31]} Kg5 {[%emt 0:00:47]} 54. Kf3 {[%emt 0:00:50]} Rf8+ {[%emt 0:00:03]} 55. Kg3 {[%emt 0:00:09]} Rf4 {[%emt 0:00:26]} 56. Be7+ {[%emt 0:00:06]} Kg6 {[%emt 0:00:09]} 57. axb5 {[%emt 0:00:13]} axb5 {[%emt 0:00:23]} 58. b3 {[%emt 0:00:41]} Kf7 {[%emt 0:00:34]} 59. Bf6 {[%emt 0:00:21]} Rf1 {[%emt 0:01:17]} 60. g5 {[%emt 0:01:38]} Kg6 {[%emt 0:00:07]} 61. c4 {[%emt 0:00:44]} bxc4 {[%emt 0:00:05]} 62. bxc4 {[%emt 0:00:06]} Rc1 {[%emt 0:00:32]} 63. Re4 {[%emt 0:00:09]} Kf5 {[%emt 0:00:41]} 64. Rh4 {[%emt 0:00:51]} Rc3+ {[%emt 0:00:32]} 65. Kf2 {[%emt 0:00:14]} Nf4 {[%emt 0:00:58]} 66. e6 {[%emt 0:01:14]} Rc2+ {[%emt 0:00:36]} 67. Kf3 {[%emt 0:00:27]} Nxe6 {[%emt 0:00:09]} 68. Rh1 {[%emt 0:00:34]} Rxc4 {[%emt 0:00:25]} 69. Ke3 {[%emt 0:00:18]} Rg4 {[%emt 0:00:48]} 70. Rf1+ {[%emt 0:00:18]} Kg6 {[%emt 0:00:03]} 71. Kf3 {[%emt 0:00:16]} Ra4 {[%emt 0:06:00]} 72. Rb1 {[%emt 0:00:17]} Nxg5+ {[%emt 0:00:00]} 73. Bxg5 {[%emt 0:00:18]} Kxg5 $11 {[%emt 0:01:00]} 1/2-1/2

[Event "Djerba Festival Open-B 2025"]
[Site "Djerba"]
[Date "2025.02.21"]
[Round "7.18"]
[White "Baba, Mouadh"]
[Black "Nassr, Lina"]
[Result "0-1"]
[Annotator "RC"]
[ECO "B45"]
[WhiteElo "1688"]
[BlackElo "1934"]
[PlyCount "80"]
[EventDate "2025.02.15"]
[EventType "swiss"]
[EventCountry "TUN"]
[SourceTitle "playchess.com"]
[Source "ChessBase"]
[SourceQuality "1"]
[TimeControl "5400+30"]

1. e4 {[%emt 0:00:02]} c5 {[%emt 0:04:00]} 2. Nf3 {[%emt 0:00:30]} e6 {[%emt 0:00:04]} 3. d4 {[%emt 0:00:07]} cxd4 {[%emt 0:00:05]} 4. Nxd4 {[%emt 0:00:07]} Nf6 {[%emt 0:00:18]} 5. Nc3 {[%emt 0:00:08]} Nc6 {[%emt 0:00:06]} 6. a3 {[%emt 0:00:07]} d5 {[%emt 0:02:10]} 7. exd5 {[%emt 0:00:30]} exd5 {[%emt 0:00:17]} 8. Bb5 {[%emt 0:00:46]} Bd7 {[%emt 0:01:09]} 9. O-O {[%emt 0:07:13]} Be7 {[%emt 0:00:40]} 10. Bg5 {[%emt 0:07:54]} O-O {[%emt 0:04:11]} 11. Nb3 {[%emt 0:06:45]} Be6 {[%emt 0:09:30]} 12. Nd4 {[%emt 0:10:48]} Nxd4 {[%emt 0:06:28]} 13. Qxd4 {[%emt 0:01:13]} a6 {[%emt 0:01:33]} 14. Be2 {[%emt 0:03:12]} Rc8 {[%emt 0:03:09]} 15. Bd3 {[%emt 0:07:10]} h6 {[%emt 0:03:36]} 16. Bf4 {[%emt 0:05:43]} Bc5 {[%emt 0:20:46]} 17. Qa4 {[%emt 0:05:29]} Rc6 {[%emt 0:08:34]} 18. Be5 {[%emt 0:11:07]} Nd7 {[%emt 0:19:34]} 19. Qf4 {[%emt 0:11:17]} Nxe5 {[%emt 0:01:03]} 20. Qxe5 {[%emt 0:01:07]} Qh4 {[%emt 0:01:14]} 21. Qg3 {[%emt 0:01:46]} Qf6 {[%emt 0:00:50]} 22. Qf3 {[%emt 0:03:01]} Qxf3 {[%emt 0:03:16]} 23. gxf3 {[%emt 0:00:13]} Bd4 {[%emt 0:01:03]} 24. Nd1 {[%emt 0:02:48]} Bh3 {[%emt 0:01:23]} 25. Re1 {[%emt 0:00:31]} f5 {[%emt 0:03:24]} 26. Kh1 {[%emt 0:04:34]} Rg6 {[%emt 0:02:20]} 27. Rg1 {[%emt 0:00:28]} Rxg1+ {[%emt 0:00:30]} 28. Kxg1 {[%emt 0:00:08]} Rf6 {[%emt 0:01:09]} 29. Ne3 {[%emt 0:02:28]} Bxb2 {[%emt 0:01:31]} 30. Rb1 {[%emt 0:00:51]} Bxa3 {[%emt 0:00:26]} 31. Rxb7 {[%emt 0:00:38]} d4 {[%emt 0:00:39]} 32. Rb8+ {[%emt 0:01:29]} Bf8 {[%emt 0:00:52]} 33. Ng2 {[%emt 0:05:17]} Rg6 {[%emt 0:00:34]} 34. Bf1 {[%emt 0:02:03]} Kf7 {[%emt 0:00:22]} 35. Kh1 {[%emt 0:00:00]} Rc6 {[%emt 0:00:35]} 36. Bd3 {[%emt 0:00:23]} g5 {[%emt 0:00:29]} 37. f4 {[%emt 0:00:27]} Bd6 {[%emt 0:00:26]} 38. fxg5 {[%emt 0:00:21]} Bxg2+ {[%emt 0:00:26]} 39. Kxg2 {[%emt 0:00:05]} Bxb8 {[%emt 0:00:05]} 40. gxh6 {[%emt 0:00:10]} Rxh6 {[%emt 0:00:06]} 0-1

[Event "Djerba Festival Open-B 2025"]
[Site "Djerba"]
[Date "2025.02.21"]
[Round "7.20"]
[White "Louvrier Saint-Mary, Jean-Roger"]
[Black "Alsaiti, Mohamed Abdalgader"]
[Result "1-0"]
[Annotator "NA RC"]
[ECO "D23"]
[WhiteElo "1839"]
[BlackElo "1674"]
[PlyCount "89"]
[EventDate "2025.02.15"]
[EventType "swiss"]
[EventCountry "TUN"]
[SourceTitle "playchess.com"]
[Source "ChessBase"]
[SourceQuality "1"]
[TimeControl "5400+30"]

1. c4 {[%emt 0:00:03]} Nf6 {[%emt 0:07:54]} 2. Nc3 {[%emt 0:00:12]} d5 {[%emt 0:00:06]} 3. d4 {[%emt 0:00:15]} dxc4 {[%emt 0:00:29]} 4. Qa4+ {[%emt 0:00:21]} Nc6 {[%emt 0:01:10]} 5. Nf3 {[%emt 0:01:00]} a6 {[%emt 0:01:40]} 6. e4 {[%emt 0:07:36]} e6 {[%emt 0:00:29]} 7. Bg5 {[%emt 0:00:46]} Bb4 {[%emt 0:05:43]} 8. Bxc4 {[%emt 0:07:46]} Bd7 {[%emt 0:13:03]} 9. Qc2 {[%emt 0:03:31]} h6 {[%emt 0:05:51]} 10. Bd2 {[%emt 0:04:44]} b5 {[%emt 0:08:49]} 11. Bd3 {[%emt 0:03:55]} Ba5 {[%emt 0:07:07]} 12. a3 {[%emt 0:02:11]} Bb6 {[%emt 0:01:53]} 13. Ne2 {[%emt 0:02:27]} Ne7 {[%emt 0:04:14]} 14. Ne5 {[%emt 0:01:53]} Bc8 {[%emt 0:01:17]} 15. a4 {[%emt 0:12:12]} bxa4 {[%emt 0:04:11]} 16. Qxa4+ {[%emt 0:03:28]} Bd7 {[%emt 0:03:20]} 17. Nxd7 {[%emt 0:00:22]} Qxd7 {[%emt 0:01:37]} 18. Bb4 {[%emt 0:05:53]} Qxa4 {[%emt 0:00:54]} 19. Rxa4 {[%emt 0:00:07]} a5 {[%emt 0:04:31]} 20. O-O {[%emt 0:03:06]} Nd7 {[%emt 0:04:48]} 21. Rc1 {[%emt 0:03:12]} Ra7 {[%emt 0:04:56]} 22. Ba3 {[%emt 0:00:14]} Ra8 {[%emt 0:00:50]} 23. Kf1 {[%emt 0:02:27]} Rc8 {[%emt 0:01:43]} 24. Bb5 {[%emt 0:05:35]} c6 {[%emt 0:00:38]} 25. Bxe7 {[%emt 0:04:11]} Kxe7 {[%emt 0:00:01]} 26. Bxc6 {[%emt 0:00:39]} Nb8 {[%emt 0:01:47]} 27. Bb7 {[%emt 0:05:19]} Rxc1+ {[%emt 0:00:18]} 28. Nxc1 {[%emt 0:00:01]} Rd8 {[%emt 0:00:40]} 29. d5 {[%emt 0:04:38]} Rd7 {[%emt 0:00:59]} 30. Ba8 {[%emt 0:00:17]} Ra7 {[%emt 0:01:02]} 31. Bc6 {[%emt 0:00:09]} Rc7 {[%emt 0:01:17]} 32. Rc4 {[%emt 0:01:45]} Nxc6 {[%emt 0:01:09]} 33. dxc6 {[%emt 0:01:15]} Kd6 {[%emt 0:00:23]} 34. Nd3 {[%emt 0:00:27]} f6 {[%emt 0:00:30]} 35. b4 {[%emt 0:02:45]} axb4 {[%emt 0:01:04]} 36. Nxb4 {[%emt 0:00:48]} Ba5 {[%emt 0:01:42]} 37. Nd3 {[%emt 0:03:24]} e5 {[%emt 0:01:46]} 38. f4 {[%emt 0:01:55]} Bd2 {[%emt 0:01:23]} 39. fxe5+ {[%emt 0:00:52]} fxe5 {[%emt 0:00:25]} 40. Ke2 {[%emt 0:02:05]} Bg5 {[%emt 0:00:16]} 41. Nb4 {[%emt 0:00:21]} Bd8 {[%emt 0:03:26]} 42. Rc3 {[%emt 0:01:30]} Bg5 {[%emt 0:00:29]} 43. Rd3+ {[%emt 0:00:14]} Kc5 {[%emt 0:00:53]} 44. Na6+ {[%emt 0:00:09]} Kxc6 {[%emt 0:00:02]} 45. Rc3+ {[%emt 0:00:25]} 1-0

[Event "Djerba Festival Open-B 2025"]
[Site "Djerba"]
[Date "2025.02.21"]
[Round "7.21"]
[White "Hafsa, Yessine"]
[Black "Ben Youssef, Chedly"]
[Result "1-0"]
[Annotator "NA RC"]
[ECO "C64"]
[WhiteElo "1503"]
[BlackElo "1787"]
[PlyCount "93"]
[EventDate "2025.02.15"]
[EventType "swiss"]
[EventCountry "TUN"]
[SourceTitle "playchess.com"]
[Source "ChessBase"]
[SourceQuality "1"]
[TimeControl "5400+30"]

1. e4 {[%emt 0:00:10]} e5 {[%emt 0:00:18]} 2. Nf3 {[%emt 0:00:06]} Nc6 {[%emt 0:00:09]} 3. Bb5 {[%emt 0:00:05]} Bc5 {[%emt 0:01:19]} 4. O-O {[%emt 0:00:24]} Nge7 {[%emt 0:00:13]} 5. Nxe5 {[%emt 0:02:09]} Bxf2+ {[%emt 0:02:17]} 6. Rxf2 {[%emt 0:00:09]} Nxe5 {[%emt 0:00:14]} 7. d4 {[%emt 0:00:28]} N5g6 {[%emt 0:00:18]} 8. Nc3 {[%emt 0:00:30]} c6 {[%emt 0:00:28]} 9. Bc4 {[%emt 0:01:25]} d5 {[%emt 0:00:23]} 10. exd5 {[%emt 0:10:31]} cxd5 {[%emt 0:00:12]} 11. Bb3 {[%emt 0:00:11]} O-O {[%emt 0:00:27]} 12. Be3 {[%emt 0:00:59]} Be6 {[%emt 0:01:30]} 13. Qe2 {[%emt 0:02:39]} a6 {[%emt 0:00:29]} 14. Raf1 {[%emt 0:00:29]} Qd7 {[%emt 0:04:58]} 15. Na4 {[%emt 0:06:36]} Rad8 {[%emt 0:02:22]} 16. Nc5 {[%emt 0:02:43]} Qc8 {[%emt 0:00:24]} 17. Bg5 {[%emt 0:03:46]} Rde8 {[%emt 0:01:10]} 18. h3 {[%emt 0:04:47]} Nc6 {[%emt 0:00:58]} 19. Qd3 {[%emt 0:03:06]} f6 {[%emt 0:01:41]} 20. Nxe6 {[%emt 0:01:15]} Qxe6 {[%emt 0:00:00]} 21. Bd2 {[%emt 0:00:16]} Kh8 {[%emt 0:00:19]} 22. Rf5 {[%emt 0:08:55]} Nge7 {[%emt 0:01:40]} 23. R5f4 {[%emt 0:01:02]} Ng6 {[%emt 0:02:31]} 24. Rf5 {[%emt 0:01:13]} Nge7 {[%emt 0:04:32]} 25. R5f4 {[%emt 0:00:27]} g6 {[%emt 0:01:58]} 26. Qf3 {[%emt 0:09:39]} Rd8 {[%emt 0:11:10]} 27. Rxf6 {[%emt 0:00:48]} Rxf6 {[%emt 0:00:17]} 28. Qf4 {[%emt 0:39:42]} Qf7 29. Qxf6+ Qxf6 {[%emt 0:00:39]} 30. Rxf6 {[%emt 0:00:00]} Kg7 {[%emt 0:01:19]} 31. Rf4 {[%emt 0:00:00]} Rd6 {[%emt 0:07:22]} 32. a3 {[%emt 0:00:00]} b5 {[%emt 0:00:54]} 33. c3 {[%emt 0:00:00]} Nf5 {[%emt 0:02:14]} 34. g4 {[%emt 0:00:00]} Ng3 {[%emt 0:02:36]} 35. Kg2 {[%emt 0:00:00]} Ne4 {[%emt 0:00:20]} 36. Be1 {[%emt 0:00:00]} Nf6 {[%emt 0:02:00]} 37. Bh4 {[%emt 0:00:00]} Ng8 {[%emt 0:02:52]} 38. Bg3 {[%emt 0:00:00]} Rd7 {[%emt 0:00:40]} 39. g5 {[%emt 0:00:00]} Nce7 {[%emt 0:00:36]} 40. Bc2 {[%emt 0:00:00]} Rd6 {[%emt 0:01:29]} 41. Rf3 {[%emt 0:00:00]} Re6 {[%emt 0:00:52]} 42. Be5+ {[%emt 0:00:00]} Rxe5 {[%emt 0:00:01]} 43. dxe5 {[%emt 0:00:00]} Nc6 {[%emt 0:00:47]} 44. e6 {[%emt 0:00:00]} Nge7 {[%emt 0:00:18]} 45. Rf7+ {[%emt 0:00:00]} Kg8 {[%emt 0:45:44]} 46. h4 {[%emt 0:09:00]} Nb8 {[%emt 0:00:30]} 47. Rf5 {[%emt 0:00:00]} 1-0

[Event "Djerba Festival Open-B 2025"]
[Site "Djerba"]
[Date "2025.02.21"]
[Round "7.22"]
[White "Badrakova, Kseniya"]
[Black "Weslati, Monem"]
[Result "0-1"]
[Annotator "NA RC"]
[ECO "C56"]
[WhiteElo "1757"]
[BlackElo "1591"]
[PlyCount "52"]
[EventDate "2025.02.15"]
[EventType "swiss"]
[EventCountry "TUN"]
[SourceTitle "playchess.com"]
[Source "ChessBase"]
[SourceQuality "1"]
[TimeControl "5400+30"]

1. e4 {[%emt 1:31:00]} e5 {[%emt 1:31:00]} 2. Bc4 {[%emt 0:00:30]} Nf6 {[%emt 0:00:30]} 3. d4 {[%emt 0:00:30]} exd4 {[%emt 0:00:30]} 4. Nf3 {[%emt 0:00:30]} Nc6 {[%emt 0:00:30]} 5. e5 {[%emt 0:00:30]} Ng4 {[%emt 0:00:30]} 6. Bxf7+ {[%emt 0:00:30]} Kxf7 {[%emt 0:00:30]} 7. Ng5+ {[%emt 0:00:30]} Kg8 {[%emt 0:00:30]} 8. Qxg4 {[%emt 0:00:30]} h6 {[%emt 0:00:30]} 9. Nf3 {[%emt 0:00:30]} d6 {[%emt 0:00:30]} 10. e6 {[%emt 0:00:30]} Qf6 {[%emt 0:00:30]} 11. O-O {[%emt 0:00:30]} Bxe6 {[%emt 0:00:30]} 12. Qg3 {[%emt 0:00:30]} Bd5 {[%emt 0:00:30]} 13. Nbd2 {[%emt 0:00:30]} Re8 {[%emt 0:00:30]} 14. Nh4 {[%emt 0:00:30]} Nb4 {[%emt 0:00:30]} 15. c4 {[%emt 0:00:30]} Bf7 {[%emt 0:00:30]} 16. f4 {[%emt 0:00:30]} d5 {[%emt 0:00:30]} 17. cxd5 {[%emt 0:00:30]} Nc2 {[%emt 0:00:30]} 18. Rb1 {[%emt 0:00:30]} Bxd5 {[%emt 0:00:30]} 19. b3 {[%emt 0:00:30]} Ne3 {[%emt 0:00:30]} 20. Re1 {[%emt 0:00:30]} Bb4 {[%emt 0:00:30]} 21. Re2 {[%emt 0:00:30]} Kh7 {[%emt 0:00:30]} 22. Nc4 {[%emt 0:00:30]} Nf5 {[%emt 0:00:30]} 23. Qd3 {[%emt 0:00:30]} Rxe2 {[%emt 0:00:30]} 24. Qxe2 {[%emt 0:00:30]} Nxh4 {[%emt 0:00:30]} 25. Qd3+ {[%emt 0:00:30]} Qg6 {[%emt 0:00:30]} 26. Qxg6+ {[%emt 0:00:30]} Kxg6 {[%emt 0:00:30]} 0-1